{"text_format":"1","workbook":"xlsx","n_sheets":5,"sheets":["Bridge","Core Processing","Core Data","Distributions","Model Results"],"not_rendered":{"charts":5,"images":12,"macros":1,"external_links":1,"defined_names":35,"comments":0,"pivot_tables":0},"unopened":[],"bounds":{"document_bytes":16777216,"sheet_cells":100000,"rows_first":2000,"rows_last":500,"rows_between":2000,"halvings":0,"cell_chars":16384,"cell_head_chars":4096},"cells_cut":0,"cells_raw":0,"read":"whole","date_system":"1900"}

{"sheet":"Bridge","index":0,"n_rows":23,"n_cols":9,"rows_kept":23,"cut":false,"hidden":false,"merged":[[5,3,5,6],[7,3,7,6],[8,3,8,6],[9,3,9,6],[20,3,20,6],[22,3,22,6],[15,3,15,6],[16,3,16,6],[17,3,17,6],[18,3,18,6],[19,3,19,6],[21,3,21,6],[12,8,12,9],[13,8,13,9],[14,3,14,6],[10,3,10,6],[11,3,11,6],[12,3,12,6],[13,3,13,6],[7,8,7,9],[8,8,8,9],[9,8,9,9],[10,8,10,9],[11,8,11,9],[22,8,22,9],[14,8,14,9],[15,8,15,9],[16,8,16,9],[17,8,17,9],[18,8,18,9],[19,8,19,9],[20,8,20,9],[21,8,21,9]]}
[]
[]
[]
[]
[]
[null,null,null,"BRIDGE"]
[]
[null,null,null,"LOCATION"]
[null,null,null,"STATE"]
[null,null,null,"TOWN"]
[null,null,null,"AGE OF STRUCTURE"]
[null,null,null,"TYPE OF CONSTRUCTION"]
[null,null,null,"OVERLAY"]
[null,null,null,"NUMBER OF LANES"]
[null,null,null,"NUMBER OF SPANS"]
[null,null,null,"FACILITY CARRIED"]
[null,null,null,"FACILITY CROSSED"]
[null,null,null,"DATE OF CONSTRUCTION"]
[null,null,null,"DATE OF LAST REPAIR"]
[null,null,null,"DATE OF FIRST COLLECTION",null,null,null,null,"2010-03-01"]
[null,null,null,"DATE OF SECOND COLLECTION",null,null,null,null,"2/12013"]
[null,null,null,"DATE OF THIRD COLLECTION",null,null,null,null,"2014-02-01"]
[null,null,null,"DATE OF FOURTH COLLECTION",null,null,null,null,"2015-02-01"]

{"sheet":"Core Processing","index":1,"n_rows":27,"n_cols":13,"rows_kept":27,"cut":false,"hidden":false,"merged":[[5,1,5,2],[1,3,1,4],[1,5,1,11],[2,5,3,6],[4,5,5,6],[0,1,0,11],[1,1,1,2],[2,1,2,2],[3,1,3,2],[4,1,4,2],[7,10,7,11],[46,7,47,7],[3,3,3,4],[2,3,2,4],[4,3,4,4],[5,3,5,4]]}
[]
[null,"Span:",null,null,null,"Curve Fit Analysis"]
[null,"Xloc:",null,null,null,"Apparent Diffusion Coeficient",null,null,null,"Sum of Squares (SS):"]
[null,"Yloc:",null,null,null,null,null,null,null,"Coeficient of Correlation (R2):"]
[null,"Dt. Of Coll.:",null,"2010-03-01",null,null,null,null,null,"Age:",{"$f":"IF(YEAR(D5)-YEAR(D6)=0,\"ERROR\",(YEAR(D5)+MONTH(D5)/12)-(YEAR(D6)+MONTH(D6)/12))","v":31.416666666666742}]
[null,"Dt. Of Const.:",null,"1978-10-01"]
[]
[null,"CoreID",null,null,null,null,null,null,null,"Number of Cores",0]
[]
[]
[null,null,"Nominal Depth","Cl Content"]
[]
[null,null,null,null,null,null,null,null,null,null,null,null,{"$f":"IF(OR(Dc=\"\",D13=\"\"),\"\",$D$13)","v":""}]
[null,null,null,null,null,null,null,null,null,null,null,null,{"$f":"IF(OR(Dc=\"\",D14=\"\"),\"\",($D$13-$D$27)*(1-ERF((C14-$C$13)/(2*SQRT(Dc*age))))+$D$27)","v":""}]
[null,null,null,null,null,null,null,null,null,null,null,null,""]
[null,null,null,null,null,null,null,null,null,null,null,null,""]
[null,null,null,null,null,null,null,null,null,null,null,null,""]
[null,null,null,null,null,null,null,null,null,null,null,null,""]
[null,null,null,null,null,null,null,null,null,null,null,null,""]
[null,null,null,null,null,null,null,null,null,null,null,null,""]
[null,null,null,null,null,null,null,null,null,null,null,null,""]
[null,null,null,null,null,null,null,null,null,null,null,null,""]
[null,null,null,null,null,null,null,null,null,null,null,null,""]
[null,null,null,null,null,null,null,null,null,null,null,null,""]
[null,null,null,null,null,null,null,null,null,null,null,null,""]
[null,null,null,null,null,null,null,null,null,null,null,null,""]
[null,null,"Base"]

{"sheet":"Core Data","index":2,"n_rows":1,"n_cols":11,"rows_kept":1,"cut":false,"hidden":true,"merged":[]}
["CoreID","Depth","Cl",null,null,null,"CoreID","Xloc","Yloc","Span","Dc"]

{"sheet":"Distributions","index":3,"n_rows":112,"n_cols":34,"rows_kept":112,"cut":false,"hidden":false,"merged":[[11,6,12,6],[11,5,12,5],[11,4,12,4],[5,6,6,6],[7,4,8,4],[7,5,8,5],[7,6,8,6],[9,4,10,4],[9,5,10,5],[9,6,10,6],[13,3,14,3],[13,4,14,4],[13,5,14,5],[13,6,14,6],[0,0,0,2],[0,3,0,6],[3,3,4,3],[3,4,4,4],[3,5,4,5],[3,6,4,6],[5,3,6,3],[7,3,8,3],[9,3,10,3],[11,3,12,3],[5,4,6,4],[5,5,6,5],[17,3,18,3],[17,4,18,4],[17,5,18,5],[17,6,18,6],[15,3,16,3],[15,4,16,4],[15,5,16,5],[15,6,16,6]]}
["Distribution of",null,null,"STATISTICS",null,null,null,null,null,null,null,null,null,null,null,null,null,null,null,null,null,null,null,null,null,{"$f":"CEILING($E$10,(10^(TRUNC(LOG10(2*$E$10)))))","v":{"$error":"#NUM!"}},{"$f":"$Z$1/20+$Z$1/10*(ROW(AA1)-1)","v":{"$error":"#NUM!"}},{"$f":"COUNTIF($A$4:$A$13,CONCATENATE(\"<=\",TEXT(AA1+$Z$1/20,\"#.0000\")))","v":0},{"$f":"CEILING($F$10,(10^(TRUNC(LOG10(2*$F$10)))))","v":{"$error":"#NUM!"}},{"$f":"$AC$1/20+$AC$1/10*(ROW(AD1)-1)","v":{"$error":"#NUM!"}},{"$f":"COUNTIF($B$4:$B$14,CONCATENATE(\"<=\",TEXT(AD1+$AC$1/20,\"#.0000\")))","v":0},{"$f":"CEILING($G$10,(10^(TRUNC(LOG10(2*$G$10)))))","v":{"$error":"#NUM!"}},{"$f":"$AF$1/20+$AF$1/10*(ROW(AG1)-1)","v":{"$error":"#NUM!"}},{"$f":"COUNTIF($C$4:$C$74,CONCATENATE(\"<=\",TEXT(AG1+$AF$1/20,\"#.0000\")))","v":0}]
[null,null,null,null,null,null,null,null,null,null,null,null,null,null,null,null,null,null,null,null,null,null,null,null,null,null,{"$f":"$Z$1/20+$Z$1/10*(ROW(AA2)-1)","v":{"$error":"#NUM!"}},{"$f":"COUNTIF($A$4:$A$13,CONCATENATE(\"<=\",TEXT(AA2+$Z$1/20,\"#.0000\")))-SUM($AB$1:$AB1)","v":0},null,{"$f":"$AC$1/20+$AC$1/10*(ROW(AD2)-1)","v":{"$error":"#NUM!"}},{"$f":"COUNTIF($B$4:$B$14,CONCATENATE(\"<=\",TEXT(AD2+$AC$1/20,\"#.0000\")))-SUM($AE$1:$AE1)","v":0},null,{"$f":"$AF$1/20+$AF$1/10*(ROW(AG2)-1)","v":{"$error":"#NUM!"}},{"$f":"COUNTIF($C$4:$C$74,CONCATENATE(\"<=\",TEXT(AG2+$AF$1/20,\"#.0000\")))-SUM($AH$1:$AH1)","v":0}]
["Co","Dc","Cover",null,null,"Dc","Cover",null,null,null,null,null,null,null,null,null,null,null,null,null,null,null,null,null,null,null,{"$f":"$Z$1/20+$Z$1/10*(ROW(AA3)-1)","v":{"$error":"#NUM!"}},{"$f":"COUNTIF($A$4:$A$13,CONCATENATE(\"<=\",TEXT(AA3+$Z$1/20,\"#.0000\")))-SUM($AB$1:$AB2)","v":0},null,{"$f":"$AC$1/20+$AC$1/10*(ROW(AD3)-1)","v":{"$error":"#NUM!"}},{"$f":"COUNTIF($B$4:$B$14,CONCATENATE(\"<=\",TEXT(AD3+$AC$1/20,\"#.0000\")))-SUM($AE$1:$AE2)","v":0},null,{"$f":"$AF$1/20+$AF$1/10*(ROW(AG3)-1)","v":{"$error":"#NUM!"}},{"$f":"COUNTIF($C$4:$C$74,CONCATENATE(\"<=\",TEXT(AG3+$AF$1/20,\"#.0000\")))-SUM($AH$1:$AH2)","v":0}]
[null,null,null,"Average",{"$f":"AVERAGE(A4:A13)","v":{"$error":"#DIV/0!"}},{"$f":"AVERAGE(B4:B14)","v":{"$error":"#DIV/0!"}},{"$f":"AVERAGE(C4:C74)","v":{"$error":"#DIV/0!"}},null,null,null,null,null,null,null,null,null,null,null,null,null,null,null,null,null,null,null,{"$error":"#NUM!"},{"$f":"COUNTIF($A$4:$A$13,CONCATENATE(\"<=\",TEXT(AA4+$Z$1/20,\"#.0000\")))-SUM($AB$1:$AB3)","v":0},null,{"$error":"#NUM!"},{"$f":"COUNTIF($B$4:$B$14,CONCATENATE(\"<=\",TEXT(AD4+$AC$1/20,\"#.0000\")))-SUM($AE$1:$AE3)","v":0},null,{"$error":"#NUM!"},{"$f":"COUNTIF($C$4:$C$74,CONCATENATE(\"<=\",TEXT(AG4+$AF$1/20,\"#.0000\")))-SUM($AH$1:$AH3)","v":0}]
[null,null,null,null,null,null,null,null,null,null,null,null,null,null,null,null,null,null,null,null,null,null,null,null,null,null,{"$error":"#NUM!"},{"$f":"COUNTIF($A$4:$A$13,CONCATENATE(\"<=\",TEXT(AA5+$Z$1/20,\"#.0000\")))-SUM($AB$1:$AB4)","v":0},null,{"$error":"#NUM!"},{"$f":"COUNTIF($B$4:$B$14,CONCATENATE(\"<=\",TEXT(AD5+$AC$1/20,\"#.0000\")))-SUM($AE$1:$AE4)","v":0},null,{"$error":"#NUM!"},{"$f":"COUNTIF($C$4:$C$74,CONCATENATE(\"<=\",TEXT(AG5+$AF$1/20,\"#.0000\")))-SUM($AH$1:$AH4)","v":0}]
[null,null,null,"Standard Deviation",{"$f":"STDEV(A4:A13)","v":{"$error":"#DIV/0!"}},{"$f":"STDEV(B4:B14)","v":{"$error":"#DIV/0!"}},{"$f":"STDEV(C4:C74)","v":{"$error":"#DIV/0!"}},null,null,null,null,null,null,null,null,null,null,null,null,null,null,null,null,null,null,null,{"$error":"#NUM!"},{"$f":"COUNTIF($A$4:$A$13,CONCATENATE(\"<=\",TEXT(AA6+$Z$1/20,\"#.0000\")))-SUM($AB$1:$AB5)","v":0},null,{"$error":"#NUM!"},{"$f":"COUNTIF($B$4:$B$14,CONCATENATE(\"<=\",TEXT(AD6+$AC$1/20,\"#.0000\")))-SUM($AE$1:$AE5)","v":0},null,{"$error":"#NUM!"},{"$f":"COUNTIF($C$4:$C$74,CONCATENATE(\"<=\",TEXT(AG6+$AF$1/20,\"#.0000\")))-SUM($AH$1:$AH5)","v":0}]
[null,null,null,null,null,null,null,null,1.8,4.7,3.85,3.25,2.4,1.35,4.25,null,null,null,null,null,null,null,null,null,null,null,{"$error":"#NUM!"},{"$f":"COUNTIF($A$4:$A$13,CONCATENATE(\"<=\",TEXT(AA7+$Z$1/20,\"#.0000\")))-SUM($AB$1:$AB6)","v":0},null,{"$error":"#NUM!"},{"$f":"COUNTIF($B$4:$B$14,CONCATENATE(\"<=\",TEXT(AD7+$AC$1/20,\"#.0000\")))-SUM($AE$1:$AE6)","v":0},null,{"$error":"#NUM!"},{"$f":"COUNTIF($C$4:$C$74,CONCATENATE(\"<=\",TEXT(AG7+$AF$1/20,\"#.0000\")))-SUM($AH$1:$AH6)","v":0}]
[null,null,null,"Min",{"$f":"MIN(A4:A13)","v":0},{"$f":"MIN(B4:B14)","v":0},{"$f":"MIN(C4:C74)","v":0},null,1.85,4.8,2.5,4.0999999999999996,2.4500000000000002,1.9,3.7,null,null,null,null,null,null,null,null,null,null,null,{"$error":"#NUM!"},{"$f":"COUNTIF($A$4:$A$13,CONCATENATE(\"<=\",TEXT(AA8+$Z$1/20,\"#.0000\")))-SUM($AB$1:$AB7)","v":0},null,{"$error":"#NUM!"},{"$f":"COUNTIF($B$4:$B$14,CONCATENATE(\"<=\",TEXT(AD8+$AC$1/20,\"#.0000\")))-SUM($AE$1:$AE7)","v":0},null,{"$error":"#NUM!"},{"$f":"COUNTIF($C$4:$C$74,CONCATENATE(\"<=\",TEXT(AG8+$AF$1/20,\"#.0000\")))-SUM($AH$1:$AH7)","v":0}]
[null,null,null,null,null,null,null,null,1.8,4.2,3.65,4.3,2.5,2.35,3.45,null,null,null,null,null,null,null,null,null,null,null,{"$error":"#NUM!"},{"$f":"COUNTIF($A$4:$A$13,CONCATENATE(\"<=\",TEXT(AA9+$Z$1/20,\"#.0000\")))-SUM($AB$1:$AB8)","v":0},null,{"$error":"#NUM!"},{"$f":"COUNTIF($B$4:$B$14,CONCATENATE(\"<=\",TEXT(AD9+$AC$1/20,\"#.0000\")))-SUM($AE$1:$AE8)","v":0},null,{"$error":"#NUM!"},{"$f":"COUNTIF($C$4:$C$74,CONCATENATE(\"<=\",TEXT(AG9+$AF$1/20,\"#.0000\")))-SUM($AH$1:$AH8)","v":0}]
[null,null,null,"Max",{"$f":"MAX(A4:A13)","v":0},{"$f":"MAX(B4:B14)","v":0},{"$f":"MAX(C4:C74)","v":0},null,1.85,4.5,2.9,4.25,2.2000000000000002,3.3,3.05,null,null,null,null,null,null,null,null,null,null,null,{"$error":"#NUM!"},{"$f":"COUNTIF($A$4:$A$13,CONCATENATE(\"<=\",TEXT(AA10+$Z$1/20,\"#.0000\")))-SUM($AB$1:$AB9)","v":0},null,{"$error":"#NUM!"},{"$f":"COUNTIF($B$4:$B$14,CONCATENATE(\"<=\",TEXT(AD10+$AC$1/20,\"#.0000\")))-SUM($AE$1:$AE9)","v":0},null,{"$error":"#NUM!"},{"$f":"COUNTIF($C$4:$C$74,CONCATENATE(\"<=\",TEXT(AG10+$AF$1/20,\"#.0000\")))-SUM($AH$1:$AH9)","v":0}]
[null,null,null,null,null,null,null,null,2.5,5.0999999999999996,3.4,3.7,3.25,2.35,2.6]
[null,null,null,"n",{"$f":"COUNT(A4:A65536)","v":0},{"$f":"COUNT(B4:B65536)","v":0},{"$f":"COUNT(C4:C65536)","v":0},null,2.5,4.95,3.65,3.3,2.65,2.5,2.5,null,null,null,null,null,null,null,null,null,null,{"$f":"CEILING(2*$E$10,(10^(TRUNC(LOG10(2*$E$10)))))","v":{"$error":"#NUM!"}},{"$f":"$Z$12/100*(ROW(AA12)-12)","v":{"$error":"#NUM!"}},{"$f":"NORMDIST(AA12,$E$4,$E$6,FALSE)","v":{"$error":"#NUM!"}},{"$f":"CEILING(2*$F$10,(10^(TRUNC(LOG10(2*$F$10)))))","v":{"$error":"#NUM!"}},{"$f":"$AC$12/100*(ROW(AD12)-12)","v":{"$error":"#NUM!"}},{"$f":"GAMMADIST(AD12,$F$14,$F$16,FALSE)","v":{"$error":"#NUM!"}},{"$f":"CEILING(2*$G$10,(10^(TRUNC(LOG10(2*$G$10)))))","v":{"$error":"#NUM!"}},{"$f":"$AF$12/100*(ROW(AG12)-12)","v":{"$error":"#NUM!"}},{"$f":"NORMDIST(AG12,$G$4,$G$6,FALSE)","v":{"$error":"#NUM!"}}]
[null,null,null,null,null,null,null,null,2.2000000000000002,4.4000000000000004,4.4000000000000004,3.6,3.95,2.4500000000000002,2.4500000000000002,null,null,null,null,null,null,null,null,null,null,null,{"$f":"$Z$12/100*(ROW(AA13)-12)","v":{"$error":"#NUM!"}},{"$f":"NORMDIST(AA13,$E$4,$E$6,FALSE)","v":{"$error":"#NUM!"}},null,{"$f":"$AC$12/100*(ROW(AD13)-12)","v":{"$error":"#NUM!"}},{"$f":"GAMMADIST(AD13,$F$14,$F$16,FALSE)","v":{"$error":"#NUM!"}},null,{"$f":"$AF$12/100*(ROW(AG13)-12)","v":{"$error":"#NUM!"}},{"$f":"NORMDIST(AG13,$G$4,$G$6,FALSE)","v":{"$error":"#NUM!"}}]
[null,null,null,"Alfa (α)",null,{"$f":"F4/F16","v":{"$error":"#DIV/0!"}},null,null,2.65,4.6500000000000004,4.25,4.25,3.9,2.7,3.65,null,null,null,null,null,null,null,null,null,null,null,{"$error":"#NUM!"},{"$error":"#NUM!"},null,{"$error":"#NUM!"},{"$error":"#NUM!"},null,{"$error":"#NUM!"},{"$error":"#NUM!"}]
[null,null,null,null,null,null,null,null,2.95,5.05,3.5,4.8499999999999996,3.75,1.05,4.1500000000000004,null,null,null,null,null,null,null,null,null,null,null,{"$error":"#NUM!"},{"$error":"#NUM!"},null,{"$error":"#NUM!"},{"$error":"#NUM!"},null,{"$error":"#NUM!"},{"$error":"#NUM!"}]
[null,null,null,"Beta(β)",null,{"$f":"F6^2/F4","v":{"$error":"#DIV/0!"}},null,null,2.4500000000000002,4.8,3.6,4.2,3.3,1.25,4.4000000000000004,null,null,null,null,null,null,null,null,null,null,null,{"$error":"#NUM!"},{"$error":"#NUM!"},null,{"$error":"#NUM!"},{"$error":"#NUM!"},null,{"$error":"#NUM!"},{"$error":"#NUM!"}]
[null,null,null,null,null,null,null,null,null,null,null,null,null,null,null,null,null,null,null,null,null,null,null,null,null,null,{"$error":"#NUM!"},{"$error":"#NUM!"},null,{"$error":"#NUM!"},{"$error":"#NUM!"},null,{"$error":"#NUM!"},{"$error":"#NUM!"}]
[null,null,null,"R2",0.97761126306868484,0.95734777481107136,0.98407295131989336,null,null,null,null,null,null,null,null,null,null,null,null,null,null,null,null,null,null,null,{"$error":"#NUM!"},{"$error":"#NUM!"},null,{"$error":"#NUM!"},{"$error":"#NUM!"},null,{"$error":"#NUM!"},{"$error":"#NUM!"}]
[null,null,null,null,null,null,null,null,null,null,null,null,null,null,null,null,null,null,null,null,null,null,null,null,null,null,{"$error":"#NUM!"},{"$error":"#NUM!"},null,{"$error":"#NUM!"},{"$error":"#NUM!"},null,{"$error":"#NUM!"},{"$error":"#NUM!"}]
[null,null,null,null,838.8,{"$f":"A4*0.9","v":0},41.13,null,null,null,null,null,null,null,null,null,null,null,null,null,null,null,null,null,null,null,{"$error":"#NUM!"},{"$error":"#NUM!"},null,{"$error":"#NUM!"},{"$error":"#NUM!"},null,{"$error":"#NUM!"},{"$error":"#NUM!"}]
[null,null,null,null,null,null,null,null,null,null,null,null,null,null,null,null,null,null,null,null,null,null,null,null,null,null,{"$error":"#NUM!"},{"$error":"#NUM!"},null,{"$error":"#NUM!"},{"$error":"#NUM!"},null,{"$error":"#NUM!"},{"$error":"#NUM!"}]
[null,null,null,null,null,null,null,null,null,null,null,null,null,null,null,null,null,null,null,null,null,null,null,null,null,null,{"$error":"#NUM!"},{"$error":"#NUM!"},null,{"$error":"#NUM!"},{"$error":"#NUM!"},null,{"$error":"#NUM!"},{"$error":"#NUM!"}]
[null,null,null,null,null,null,null,null,null,null,null,null,null,null,null,null,null,null,null,null,null,null,null,null,null,null,{"$error":"#NUM!"},{"$error":"#NUM!"},null,{"$error":"#NUM!"},{"$error":"#NUM!"},null,{"$error":"#NUM!"},{"$error":"#NUM!"}]
[null,null,null,null,null,null,null,null,null,null,null,null,null,null,null,null,null,null,null,null,null,null,null,null,null,null,{"$error":"#NUM!"},{"$error":"#NUM!"},null,{"$error":"#NUM!"},{"$error":"#NUM!"},null,{"$error":"#NUM!"},{"$error":"#NUM!"}]
[null,null,null,null,null,null,null,null,null,null,null,null,null,null,null,null,null,null,null,null,null,null,null,null,null,null,{"$error":"#NUM!"},{"$error":"#NUM!"},null,{"$error":"#NUM!"},{"$error":"#NUM!"},null,{"$error":"#NUM!"},{"$error":"#NUM!"}]
[null,null,null,null,null,null,null,null,null,null,null,null,null,null,null,null,null,null,null,null,null,null,null,null,null,null,{"$error":"#NUM!"},{"$error":"#NUM!"},null,{"$error":"#NUM!"},{"$error":"#NUM!"},null,{"$error":"#NUM!"},{"$error":"#NUM!"}]
[null,null,null,null,null,null,null,null,null,null,null,null,null,null,null,null,null,null,null,null,null,null,null,null,null,null,{"$error":"#NUM!"},{"$error":"#NUM!"},null,{"$error":"#NUM!"},{"$error":"#NUM!"},null,{"$error":"#NUM!"},{"$error":"#NUM!"}]
[null,null,null,null,null,null,null,null,null,null,null,null,null,null,null,null,null,null,null,null,null,null,null,null,null,null,{"$error":"#NUM!"},{"$error":"#NUM!"},null,{"$error":"#NUM!"},{"$error":"#NUM!"},null,{"$error":"#NUM!"},{"$error":"#NUM!"}]
[null,null,null,null,null,null,null,null,null,null,null,null,null,null,null,null,null,null,null,null,null,null,null,null,null,null,{"$error":"#NUM!"},{"$error":"#NUM!"},null,{"$error":"#NUM!"},{"$error":"#NUM!"},null,{"$error":"#NUM!"},{"$error":"#NUM!"}]
[null,null,null,null,null,null,null,null,null,null,null,null,null,null,null,null,null,null,null,null,null,null,null,null,null,null,{"$error":"#NUM!"},{"$error":"#NUM!"},null,{"$error":"#NUM!"},{"$error":"#NUM!"},null,{"$error":"#NUM!"},{"$error":"#NUM!"}]
[null,null,null,null,null,null,null,null,null,null,null,null,null,null,null,null,null,null,null,null,null,null,null,null,null,null,{"$error":"#NUM!"},{"$error":"#NUM!"},null,{"$error":"#NUM!"},{"$error":"#NUM!"},null,{"$error":"#NUM!"},{"$error":"#NUM!"}]
[null,null,null,null,null,null,null,null,null,null,null,null,null,null,null,null,null,null,null,null,null,null,null,null,null,null,{"$error":"#NUM!"},{"$error":"#NUM!"},null,{"$error":"#NUM!"},{"$error":"#NUM!"},null,{"$error":"#NUM!"},{"$error":"#NUM!"}]
[null,null,null,null,null,null,null,null,null,null,null,null,null,null,null,null,null,null,null,null,null,null,null,null,null,null,{"$error":"#NUM!"},{"$error":"#NUM!"},null,{"$error":"#NUM!"},{"$error":"#NUM!"},null,{"$error":"#NUM!"},{"$error":"#NUM!"}]
[null,null,null,null,null,null,null,null,null,null,null,null,null,null,null,null,null,null,null,null,null,null,null,null,null,null,{"$error":"#NUM!"},{"$error":"#NUM!"},null,{"$error":"#NUM!"},{"$error":"#NUM!"},null,{"$error":"#NUM!"},{"$error":"#NUM!"}]
[null,null,null,null,null,null,null,null,null,null,null,null,null,null,null,null,null,null,null,null,null,null,null,null,null,null,{"$error":"#NUM!"},{"$error":"#NUM!"},null,{"$error":"#NUM!"},{"$error":"#NUM!"},null,{"$error":"#NUM!"},{"$error":"#NUM!"}]
[null,null,null,null,null,null,null,null,null,null,null,null,null,null,null,null,null,null,null,null,null,null,null,null,null,null,{"$error":"#NUM!"},{"$error":"#NUM!"},null,{"$error":"#NUM!"},{"$error":"#NUM!"},null,{"$error":"#NUM!"},{"$error":"#NUM!"}]
[null,null,null,null,null,null,null,null,null,null,null,null,null,null,null,null,null,null,null,null,null,null,null,null,null,null,{"$error":"#NUM!"},{"$error":"#NUM!"},null,{"$error":"#NUM!"},{"$error":"#NUM!"},null,{"$error":"#NUM!"},{"$error":"#NUM!"}]
[null,null,null,null,null,null,null,null,null,null,null,null,null,null,null,null,null,null,null,null,null,null,null,null,null,null,{"$error":"#NUM!"},{"$error":"#NUM!"},null,{"$error":"#NUM!"},{"$error":"#NUM!"},null,{"$error":"#NUM!"},{"$error":"#NUM!"}]
[null,null,null,null,null,null,null,null,null,null,null,null,null,null,null,null,null,null,null,null,null,null,null,null,null,null,{"$error":"#NUM!"},{"$error":"#NUM!"},null,{"$error":"#NUM!"},{"$error":"#NUM!"},null,{"$error":"#NUM!"},{"$error":"#NUM!"}]
[null,null,null,null,null,null,null,null,null,null,null,null,null,null,null,null,null,null,null,null,null,null,null,null,null,null,{"$error":"#NUM!"},{"$error":"#NUM!"},null,{"$error":"#NUM!"},{"$error":"#NUM!"},null,{"$error":"#NUM!"},{"$error":"#NUM!"}]
[null,null,null,null,null,null,null,null,null,null,null,null,null,null,null,null,null,null,null,null,null,null,null,null,null,null,{"$error":"#NUM!"},{"$error":"#NUM!"},null,{"$error":"#NUM!"},{"$error":"#NUM!"},null,{"$error":"#NUM!"},{"$error":"#NUM!"}]
[null,null,null,null,null,null,null,null,null,null,null,null,null,null,null,null,null,null,null,null,null,null,null,null,null,null,{"$error":"#NUM!"},{"$error":"#NUM!"},null,{"$error":"#NUM!"},{"$error":"#NUM!"},null,{"$error":"#NUM!"},{"$error":"#NUM!"}]
[null,null,null,null,null,null,null,null,null,null,null,null,null,null,null,null,null,null,null,null,null,null,null,null,null,null,{"$error":"#NUM!"},{"$error":"#NUM!"},null,{"$error":"#NUM!"},{"$error":"#NUM!"},null,{"$error":"#NUM!"},{"$error":"#NUM!"}]
[null,null,null,null,null,null,null,null,null,null,null,null,null,null,null,null,null,null,null,null,null,null,null,null,null,null,{"$error":"#NUM!"},{"$error":"#NUM!"},null,{"$error":"#NUM!"},{"$error":"#NUM!"},null,{"$error":"#NUM!"},{"$error":"#NUM!"}]
[null,null,null,null,null,null,null,null,null,null,null,null,null,null,null,null,null,null,null,null,null,null,null,null,null,null,{"$error":"#NUM!"},{"$error":"#NUM!"},null,{"$error":"#NUM!"},{"$error":"#NUM!"},null,{"$error":"#NUM!"},{"$error":"#NUM!"}]
[null,null,null,null,null,null,null,null,null,null,null,null,null,null,null,null,null,null,null,null,null,null,null,null,null,null,{"$error":"#NUM!"},{"$error":"#NUM!"},null,{"$error":"#NUM!"},{"$error":"#NUM!"},null,{"$error":"#NUM!"},{"$error":"#NUM!"}]
[null,null,null,null,null,null,null,null,null,null,null,null,null,null,null,null,null,null,null,null,null,null,null,null,null,null,{"$error":"#NUM!"},{"$error":"#NUM!"},null,{"$error":"#NUM!"},{"$error":"#NUM!"},null,{"$error":"#NUM!"},{"$error":"#NUM!"}]
[null,null,null,null,null,null,null,null,null,null,null,null,null,null,null,null,null,null,null,null,null,null,null,null,null,null,{"$error":"#NUM!"},{"$error":"#NUM!"},null,{"$error":"#NUM!"},{"$error":"#NUM!"},null,{"$error":"#NUM!"},{"$error":"#NUM!"}]
[null,null,null,null,null,null,null,null,null,null,null,null,null,null,null,null,null,null,null,null,null,null,null,null,null,null,{"$error":"#NUM!"},{"$error":"#NUM!"},null,{"$error":"#NUM!"},{"$error":"#NUM!"},null,{"$error":"#NUM!"},{"$error":"#NUM!"}]
[null,null,null,null,null,null,null,null,null,null,null,null,null,null,null,null,null,null,null,null,null,null,null,null,null,null,{"$error":"#NUM!"},{"$error":"#NUM!"},null,{"$error":"#NUM!"},{"$error":"#NUM!"},null,{"$error":"#NUM!"},{"$error":"#NUM!"}]
[null,null,null,null,null,null,null,null,null,null,null,null,null,null,null,null,null,null,null,null,null,null,null,null,null,null,{"$error":"#NUM!"},{"$error":"#NUM!"},null,{"$error":"#NUM!"},{"$error":"#NUM!"},null,{"$error":"#NUM!"},{"$error":"#NUM!"}]
[null,null,null,null,null,null,null,null,null,null,null,null,null,null,null,null,null,null,null,null,null,null,null,null,null,null,{"$error":"#NUM!"},{"$error":"#NUM!"},null,{"$error":"#NUM!"},{"$error":"#NUM!"},null,{"$error":"#NUM!"},{"$error":"#NUM!"}]
[null,null,null,null,null,null,null,null,null,null,null,null,null,null,null,null,null,null,null,null,null,null,null,null,null,null,{"$error":"#NUM!"},{"$error":"#NUM!"},null,{"$error":"#NUM!"},{"$error":"#NUM!"},null,{"$error":"#NUM!"},{"$error":"#NUM!"}]
[null,null,null,null,null,null,null,null,null,null,null,null,null,null,null,null,null,null,null,null,null,null,null,null,null,null,{"$error":"#NUM!"},{"$error":"#NUM!"},null,{"$error":"#NUM!"},{"$error":"#NUM!"},null,{"$error":"#NUM!"},{"$error":"#NUM!"}]
[null,null,null,null,null,null,null,null,null,null,null,null,null,null,null,null,null,null,null,null,null,null,null,null,null,null,{"$error":"#NUM!"},{"$error":"#NUM!"},null,{"$error":"#NUM!"},{"$error":"#NUM!"},null,{"$error":"#NUM!"},{"$error":"#NUM!"}]
[null,null,null,null,null,null,null,null,null,null,null,null,null,null,null,null,null,null,null,null,null,null,null,null,null,null,{"$error":"#NUM!"},{"$error":"#NUM!"},null,{"$error":"#NUM!"},{"$error":"#NUM!"},null,{"$error":"#NUM!"},{"$error":"#NUM!"}]
[null,null,null,null,null,null,null,null,null,null,null,null,null,null,null,null,null,null,null,null,null,null,null,null,null,null,{"$error":"#NUM!"},{"$error":"#NUM!"},null,{"$error":"#NUM!"},{"$error":"#NUM!"},null,{"$error":"#NUM!"},{"$error":"#NUM!"}]
[null,null,null,null,null,null,null,null,null,null,null,null,null,null,null,null,null,null,null,null,null,null,null,null,null,null,{"$error":"#NUM!"},{"$error":"#NUM!"},null,{"$error":"#NUM!"},{"$error":"#NUM!"},null,{"$error":"#NUM!"},{"$error":"#NUM!"}]
[null,null,null,null,null,null,null,null,null,null,null,null,null,null,null,null,null,null,null,null,null,null,null,null,null,null,{"$error":"#NUM!"},{"$error":"#NUM!"},null,{"$error":"#NUM!"},{"$error":"#NUM!"},null,{"$error":"#NUM!"},{"$error":"#NUM!"}]
[null,null,null,null,null,null,null,null,null,null,null,null,null,null,null,null,null,null,null,null,null,null,null,null,null,null,{"$error":"#NUM!"},{"$error":"#NUM!"},null,{"$error":"#NUM!"},{"$error":"#NUM!"},null,{"$error":"#NUM!"},{"$error":"#NUM!"}]
[null,null,null,null,null,null,null,null,null,null,null,null,null,null,null,null,null,null,null,null,null,null,null,null,null,null,{"$error":"#NUM!"},{"$error":"#NUM!"},null,{"$error":"#NUM!"},{"$error":"#NUM!"},null,{"$error":"#NUM!"},{"$error":"#NUM!"}]
[null,null,null,null,null,null,null,null,null,null,null,null,null,null,null,null,null,null,null,null,null,null,null,null,null,null,{"$error":"#NUM!"},{"$error":"#NUM!"},null,{"$error":"#NUM!"},{"$error":"#NUM!"},null,{"$error":"#NUM!"},{"$error":"#NUM!"}]
[null,null,null,null,null,null,null,null,null,null,null,null,null,null,null,null,null,null,null,null,null,null,null,null,null,null,{"$error":"#NUM!"},{"$error":"#NUM!"},null,{"$error":"#NUM!"},{"$error":"#NUM!"},null,{"$error":"#NUM!"},{"$error":"#NUM!"}]
[null,null,null,null,null,null,null,null,null,null,null,null,null,null,null,null,null,null,null,null,null,null,null,null,null,null,{"$error":"#NUM!"},{"$error":"#NUM!"},null,{"$error":"#NUM!"},{"$error":"#NUM!"},null,{"$error":"#NUM!"},{"$error":"#NUM!"}]
[null,null,null,null,null,null,null,null,null,null,null,null,null,null,null,null,null,null,null,null,null,null,null,null,null,null,{"$error":"#NUM!"},{"$error":"#NUM!"},null,{"$error":"#NUM!"},{"$error":"#NUM!"},null,{"$error":"#NUM!"},{"$error":"#NUM!"}]
[null,null,null,null,null,null,null,null,null,null,null,null,null,null,null,null,null,null,null,null,null,null,null,null,null,null,{"$error":"#NUM!"},{"$error":"#NUM!"},null,{"$error":"#NUM!"},{"$error":"#NUM!"},null,{"$error":"#NUM!"},{"$error":"#NUM!"}]
[null,null,null,null,null,null,null,null,null,null,null,null,null,null,null,null,null,null,null,null,null,null,null,null,null,null,{"$error":"#NUM!"},{"$error":"#NUM!"},null,{"$error":"#NUM!"},{"$error":"#NUM!"},null,{"$error":"#NUM!"},{"$error":"#NUM!"}]
[null,null,null,null,null,null,null,null,null,null,null,null,null,null,null,null,null,null,null,null,null,null,null,null,null,null,{"$error":"#NUM!"},{"$error":"#NUM!"},null,{"$error":"#NUM!"},{"$error":"#NUM!"},null,{"$error":"#NUM!"},{"$error":"#NUM!"}]
[null,null,null,null,null,null,null,null,null,null,null,null,null,null,null,null,null,null,null,null,null,null,null,null,null,null,{"$error":"#NUM!"},{"$error":"#NUM!"},null,{"$error":"#NUM!"},{"$error":"#NUM!"},null,{"$error":"#NUM!"},{"$error":"#NUM!"}]
[null,null,null,null,null,null,null,null,null,null,null,null,null,null,null,null,null,null,null,null,null,null,null,null,null,null,{"$error":"#NUM!"},{"$error":"#NUM!"},null,{"$error":"#NUM!"},{"$error":"#NUM!"},null,{"$error":"#NUM!"},{"$error":"#NUM!"}]
[null,null,null,null,null,null,null,null,null,null,null,null,null,null,null,null,null,null,null,null,null,null,null,null,null,null,{"$error":"#NUM!"},{"$error":"#NUM!"},null,{"$error":"#NUM!"},{"$error":"#NUM!"},null,{"$error":"#NUM!"},{"$error":"#NUM!"}]
[null,null,null,null,null,null,null,null,null,null,null,null,null,null,null,null,null,null,null,null,null,null,null,null,null,null,{"$error":"#NUM!"},{"$error":"#NUM!"},null,{"$error":"#NUM!"},{"$error":"#NUM!"},null,{"$error":"#NUM!"},{"$error":"#NUM!"}]
[null,null,null,null,null,null,null,null,null,null,null,null,null,null,null,null,null,null,null,null,null,null,null,null,null,null,{"$error":"#NUM!"},{"$error":"#NUM!"},null,{"$error":"#NUM!"},{"$error":"#NUM!"},null,{"$error":"#NUM!"},{"$error":"#NUM!"}]
[null,null,null,null,null,null,null,null,null,null,null,null,null,null,null,null,null,null,null,null,null,null,null,null,null,null,{"$error":"#NUM!"},{"$error":"#NUM!"},null,{"$error":"#NUM!"},{"$error":"#NUM!"},null,{"$error":"#NUM!"},{"$error":"#NUM!"}]
[null,null,null,null,null,null,null,null,null,null,null,null,null,null,null,null,null,null,null,null,null,null,null,null,null,null,{"$error":"#NUM!"},{"$error":"#NUM!"},null,{"$error":"#NUM!"},{"$error":"#NUM!"},null,{"$error":"#NUM!"},{"$error":"#NUM!"}]
[null,null,null,null,null,null,null,null,null,null,null,null,null,null,null,null,null,null,null,null,null,null,null,null,null,null,{"$error":"#NUM!"},{"$error":"#NUM!"},null,{"$error":"#NUM!"},{"$error":"#NUM!"},null,{"$error":"#NUM!"},{"$error":"#NUM!"}]
[null,null,null,null,null,null,null,null,null,null,null,null,null,null,null,null,null,null,null,null,null,null,null,null,null,null,{"$f":"$Z$12/100*(ROW(AA77)-12)","v":{"$error":"#NUM!"}},{"$f":"NORMDIST(AA77,$E$4,$E$6,FALSE)","v":{"$error":"#NUM!"}},null,{"$f":"$AC$12/100*(ROW(AD77)-12)","v":{"$error":"#NUM!"}},{"$f":"GAMMADIST(AD77,$F$14,$F$16,FALSE)","v":{"$error":"#NUM!"}},null,{"$f":"$AF$12/100*(ROW(AG77)-12)","v":{"$error":"#NUM!"}},{"$f":"NORMDIST(AG77,$G$4,$G$6,FALSE)","v":{"$error":"#NUM!"}}]
[null,null,null,null,null,null,null,null,null,null,null,null,null,null,null,null,null,null,null,null,null,null,null,null,null,null,{"$error":"#NUM!"},{"$error":"#NUM!"},null,{"$error":"#NUM!"},{"$error":"#NUM!"},null,{"$error":"#NUM!"},{"$error":"#NUM!"}]
[null,null,null,null,null,null,null,null,null,null,null,null,null,null,null,null,null,null,null,null,null,null,null,null,null,null,{"$error":"#NUM!"},{"$error":"#NUM!"},null,{"$error":"#NUM!"},{"$error":"#NUM!"},null,{"$error":"#NUM!"},{"$error":"#NUM!"}]
[null,null,null,null,null,null,null,null,null,null,null,null,null,null,null,null,null,null,null,null,null,null,null,null,null,null,{"$error":"#NUM!"},{"$error":"#NUM!"},null,{"$error":"#NUM!"},{"$error":"#NUM!"},null,{"$error":"#NUM!"},{"$error":"#NUM!"}]
[null,null,null,null,null,null,null,null,null,null,null,null,null,null,null,null,null,null,null,null,null,null,null,null,null,null,{"$error":"#NUM!"},{"$error":"#NUM!"},null,{"$error":"#NUM!"},{"$error":"#NUM!"},null,{"$error":"#NUM!"},{"$error":"#NUM!"}]
[null,null,null,null,null,null,null,null,null,null,null,null,null,null,null,null,null,null,null,null,null,null,null,null,null,null,{"$error":"#NUM!"},{"$error":"#NUM!"},null,{"$error":"#NUM!"},{"$error":"#NUM!"},null,{"$error":"#NUM!"},{"$error":"#NUM!"}]
[null,null,null,null,null,null,null,null,null,null,null,null,null,null,null,null,null,null,null,null,null,null,null,null,null,null,{"$error":"#NUM!"},{"$error":"#NUM!"},null,{"$error":"#NUM!"},{"$error":"#NUM!"},null,{"$error":"#NUM!"},{"$error":"#NUM!"}]
[null,null,null,null,null,null,null,null,null,null,null,null,null,null,null,null,null,null,null,null,null,null,null,null,null,null,{"$error":"#NUM!"},{"$error":"#NUM!"},null,{"$error":"#NUM!"},{"$error":"#NUM!"},null,{"$error":"#NUM!"},{"$error":"#NUM!"}]
[null,null,null,null,null,null,null,null,null,null,null,null,null,null,null,null,null,null,null,null,null,null,null,null,null,null,{"$error":"#NUM!"},{"$error":"#NUM!"},null,{"$error":"#NUM!"},{"$error":"#NUM!"},null,{"$error":"#NUM!"},{"$error":"#NUM!"}]
[null,null,null,null,null,null,null,null,null,null,null,null,null,null,null,null,null,null,null,null,null,null,null,null,null,null,{"$error":"#NUM!"},{"$error":"#NUM!"},null,{"$error":"#NUM!"},{"$error":"#NUM!"},null,{"$error":"#NUM!"},{"$error":"#NUM!"}]
[null,null,null,null,null,null,null,null,null,null,null,null,null,null,null,null,null,null,null,null,null,null,null,null,null,null,{"$error":"#NUM!"},{"$error":"#NUM!"},null,{"$error":"#NUM!"},{"$error":"#NUM!"},null,{"$error":"#NUM!"},{"$error":"#NUM!"}]
[null,null,null,null,null,null,null,null,null,null,null,null,null,null,null,null,null,null,null,null,null,null,null,null,null,null,{"$error":"#NUM!"},{"$error":"#NUM!"},null,{"$error":"#NUM!"},{"$error":"#NUM!"},null,{"$error":"#NUM!"},{"$error":"#NUM!"}]
[null,null,null,null,null,null,null,null,null,null,null,null,null,null,null,null,null,null,null,null,null,null,null,null,null,null,{"$error":"#NUM!"},{"$error":"#NUM!"},null,{"$error":"#NUM!"},{"$error":"#NUM!"},null,{"$error":"#NUM!"},{"$error":"#NUM!"}]
[null,null,null,null,null,null,null,null,null,null,null,null,null,null,null,null,null,null,null,null,null,null,null,null,null,null,{"$error":"#NUM!"},{"$error":"#NUM!"},null,{"$error":"#NUM!"},{"$error":"#NUM!"},null,{"$error":"#NUM!"},{"$error":"#NUM!"}]
[null,null,null,null,null,null,null,null,null,null,null,null,null,null,null,null,null,null,null,null,null,null,null,null,null,null,{"$error":"#NUM!"},{"$error":"#NUM!"},null,{"$error":"#NUM!"},{"$error":"#NUM!"},null,{"$error":"#NUM!"},{"$error":"#NUM!"}]
[null,null,null,null,null,null,null,null,null,null,null,null,null,null,null,null,null,null,null,null,null,null,null,null,null,null,{"$error":"#NUM!"},{"$error":"#NUM!"},null,{"$error":"#NUM!"},{"$error":"#NUM!"},null,{"$error":"#NUM!"},{"$error":"#NUM!"}]
[null,null,null,null,null,null,null,null,null,null,null,null,null,null,null,null,null,null,null,null,null,null,null,null,null,null,{"$error":"#NUM!"},{"$error":"#NUM!"},null,{"$error":"#NUM!"},{"$error":"#NUM!"},null,{"$error":"#NUM!"},{"$error":"#NUM!"}]
[null,null,null,null,null,null,null,null,null,null,null,null,null,null,null,null,null,null,null,null,null,null,null,null,null,null,{"$error":"#NUM!"},{"$error":"#NUM!"},null,{"$error":"#NUM!"},{"$error":"#NUM!"},null,{"$error":"#NUM!"},{"$error":"#NUM!"}]
[null,null,null,null,null,null,null,null,null,null,null,null,null,null,null,null,null,null,null,null,null,null,null,null,null,null,{"$error":"#NUM!"},{"$error":"#NUM!"},null,{"$error":"#NUM!"},{"$error":"#NUM!"},null,{"$error":"#NUM!"},{"$error":"#NUM!"}]
[null,null,null,null,null,null,null,null,null,null,null,null,null,null,null,null,null,null,null,null,null,null,null,null,null,null,{"$error":"#NUM!"},{"$error":"#NUM!"},null,{"$error":"#NUM!"},{"$error":"#NUM!"},null,{"$error":"#NUM!"},{"$error":"#NUM!"}]
[null,null,null,null,null,null,null,null,null,null,null,null,null,null,null,null,null,null,null,null,null,null,null,null,null,null,{"$error":"#NUM!"},{"$error":"#NUM!"},null,{"$error":"#NUM!"},{"$error":"#NUM!"},null,{"$error":"#NUM!"},{"$error":"#NUM!"}]
[null,null,null,null,null,null,null,null,null,null,null,null,null,null,null,null,null,null,null,null,null,null,null,null,null,null,{"$error":"#NUM!"},{"$error":"#NUM!"},null,{"$error":"#NUM!"},{"$error":"#NUM!"},null,{"$error":"#NUM!"},{"$error":"#NUM!"}]
[null,null,null,null,null,null,null,null,null,null,null,null,null,null,null,null,null,null,null,null,null,null,null,null,null,null,{"$error":"#NUM!"},{"$error":"#NUM!"},null,{"$error":"#NUM!"},{"$error":"#NUM!"},null,{"$error":"#NUM!"},{"$error":"#NUM!"}]
[null,null,null,null,null,null,null,null,null,null,null,null,null,null,null,null,null,null,null,null,null,null,null,null,null,null,{"$error":"#NUM!"},{"$error":"#NUM!"},null,{"$error":"#NUM!"},{"$error":"#NUM!"},null,{"$error":"#NUM!"},{"$error":"#NUM!"}]
[null,null,null,null,null,null,null,null,null,null,null,null,null,null,null,null,null,null,null,null,null,null,null,null,null,null,{"$error":"#NUM!"},{"$error":"#NUM!"},null,{"$error":"#NUM!"},{"$error":"#NUM!"},null,{"$error":"#NUM!"},{"$error":"#NUM!"}]
[null,null,null,null,null,null,null,null,null,null,null,null,null,null,null,null,null,null,null,null,null,null,null,null,null,null,{"$error":"#NUM!"},{"$error":"#NUM!"},null,{"$error":"#NUM!"},{"$error":"#NUM!"},null,{"$error":"#NUM!"},{"$error":"#NUM!"}]
[null,null,null,null,null,null,null,null,null,null,null,null,null,null,null,null,null,null,null,null,null,null,null,null,null,null,{"$error":"#NUM!"},{"$error":"#NUM!"},null,{"$error":"#NUM!"},{"$error":"#NUM!"},null,{"$error":"#NUM!"},{"$error":"#NUM!"}]
[null,null,null,null,null,null,null,null,null,null,null,null,null,null,null,null,null,null,null,null,null,null,null,null,null,null,{"$error":"#NUM!"},{"$error":"#NUM!"},null,{"$error":"#NUM!"},{"$error":"#NUM!"},null,{"$error":"#NUM!"},{"$error":"#NUM!"}]
[null,null,null,null,null,null,null,null,null,null,null,null,null,null,null,null,null,null,null,null,null,null,null,null,null,null,{"$error":"#NUM!"},{"$error":"#NUM!"},null,{"$error":"#NUM!"},{"$error":"#NUM!"},null,{"$error":"#NUM!"},{"$error":"#NUM!"}]
[null,null,null,null,null,null,null,null,null,null,null,null,null,null,null,null,null,null,null,null,null,null,null,null,null,null,{"$error":"#NUM!"},{"$error":"#NUM!"},null,{"$error":"#NUM!"},{"$error":"#NUM!"},null,{"$error":"#NUM!"},{"$error":"#NUM!"}]
[null,null,null,null,null,null,null,null,null,null,null,null,null,null,null,null,null,null,null,null,null,null,null,null,null,null,{"$error":"#NUM!"},{"$error":"#NUM!"},null,{"$error":"#NUM!"},{"$error":"#NUM!"},null,{"$error":"#NUM!"},{"$error":"#NUM!"}]
[null,null,null,null,null,null,null,null,null,null,null,null,null,null,null,null,null,null,null,null,null,null,null,null,null,null,{"$error":"#NUM!"},{"$error":"#NUM!"},null,{"$error":"#NUM!"},{"$error":"#NUM!"},null,{"$error":"#NUM!"},{"$error":"#NUM!"}]
[null,null,null,null,null,null,null,null,null,null,null,null,null,null,null,null,null,null,null,null,null,null,null,null,null,null,{"$error":"#NUM!"},{"$error":"#NUM!"},null,{"$error":"#NUM!"},{"$error":"#NUM!"},null,{"$error":"#NUM!"},{"$error":"#NUM!"}]
[null,null,null,null,null,null,null,null,null,null,null,null,null,null,null,null,null,null,null,null,null,null,null,null,null,null,{"$error":"#NUM!"},{"$error":"#NUM!"},null,{"$error":"#NUM!"},{"$error":"#NUM!"},null,{"$error":"#NUM!"},{"$error":"#NUM!"}]
[null,null,null,null,null,null,null,null,null,null,null,null,null,null,null,null,null,null,null,null,null,null,null,null,null,null,{"$error":"#NUM!"},{"$error":"#NUM!"},null,{"$error":"#NUM!"},{"$error":"#NUM!"},null,{"$error":"#NUM!"},{"$error":"#NUM!"}]
[null,null,null,null,null,null,null,null,null,null,null,null,null,null,null,null,null,null,null,null,null,null,null,null,null,null,{"$error":"#NUM!"},{"$error":"#NUM!"},null,{"$error":"#NUM!"},{"$error":"#NUM!"},null,{"$error":"#NUM!"},{"$error":"#NUM!"}]

{"sheet":"Model Results","index":4,"n_rows":34,"n_cols":19,"rows_kept":34,"cut":false,"hidden":false,"merged":[[0,0,0,12],[1,2,1,12],[5,5,5,7]]}
["MODEL RESULTS",null,null,null,null,null,null,null,null,null,null,null,null,null,null,"Black","Constant","Normal","Yes"]
["Structure",null,{"$f":"Bridge!I6","v":0},null,null,null,null,null,null,null,null,null,null,null,null,"Epoxy","Linear",null,"No"]
[null,"Age:",null,null,"Epoxy Coated Rebar"]
[null,"Reinforcing:","Epoxy",null,null,"Initial Damage %:",0.2]
[null,null,null,null,null,"Life of ECR:",100]
["Model Parameters"]
[null,"Chloride Threshold:",null,null,"Find Optimal ClThres:","No"]
[null,"Time to Propagation:",5,null,"% Damage At Age:",1.8384615384615384]
[null,"# Of Iterations:",13000]
[null,"Type of Co:","Linear"]
[null,"Cl Distribution:","Normal"]
[null,"Delam %:"]
["Age","% Damage"]
[0,0]
[5,0]
[10,0]
[15,3.0769230769230771E-2]
[20,0.17692307692307693]
[25,0.7384615384615385]
[30,1.5692307692307692]
[35,2.7615384615384615]
[40,4.0153846153846153]
[45,6.1230769230769226]
[50,8.3923076923076927]
[55,10.730769230769232]
[60,13.315384615384616]
[65,16.130769230769232]
[70,19.284615384615385]
[75,22.561538461538461]
[80,26.261538461538461]
[85,29.269230769230766]
[90,32.699999999999996]
[95,36.538461538461533]
[100,40.37692307692307]